bitfinex-derivatives/quotes_ETHF0:USTF0_20250115
["timestamp","ask_amount","ask_price","bid_price","bid_amount"]
[1736907754721,0.31066,3220.4,3220.2,40.8]
[1736907755226,3.2078,3220.5,3220.2,40.8]
[1736907755418,0.31066,3220.4,3220.2,40.8]
[1736907755722,3.2078,3220.5,3220.0,8.01696343]
[1736907755723,8.2078,3220.5,3220.0,8.01696343]
[1736907755914,0.3107,3219.9,3219.8,2.97e-06]
[1736907756114,2.44184588,3219.9,3218.6,4.88202766]
[1736907756321,3.2078,3219.4,3218.6,6.73282766]
[1736907756921,0.31078,3219.1,3219.0,40.8]
[1736907757921,3.2078,3219.8,3219.0,44.0078]
[1736907758119,0.31075,3219.4,3219.1,2.20307]
[1736907758820,3.2078,3219.8,3219.1,1.8923]
[1736907759022,2.44184588,3219.3,3219.0,40.8]
[1736907759223,0.31078,3219.1,3219.0,40.8]
[1736907760423,3.2078,3219.4,3219.0,40.8]
[1736907760625,0.31073,3219.7,3219.4,0.31075]
[1736907760920,0.31073,3219.6,3219.4,1.321]
[1736907761127,3.2078,3219.8,3219.2,4.17816]
[1736907761428,3.2078,3219.8,3219.6,0.31073]
[1736907761618,3.51852,3219.8,3219.3,3.76284588]
[1736907761817,3.2078,3219.8,3219.3,3.76284588]
[1736907762230,3.2078,3219.8,3219.7,40.8]
[1736907762422,3.51851,3219.8,3219.7,40.8]
[1736907765818,7.08834701,3219.8,3219.7,40.8]
[1736907766228,8.89314701,3219.8,3219.7,40.8]
[1736907767218,7.08834701,3219.8,3219.7,40.8]
[1736907769226,6.77763701,3219.8,3219.7,41.11072]
[1736907769423,3.2078,3219.8,3219.7,40.8]
[1736907770530,3.2078,3219.8,3219.7,41.11072]
[1736907771032,6.1248,3220.2,3219.7,40.8]
[1736907771331,3.67300053,3220.1,3219.9,0.3107]
[1736907771522,3.67300053,3220.1,3219.8,2.23621]
[1736907772429,0.3107,3220.0,3219.8,1.9255]
[1736907772729,3.36231053,3220.1,3219.8,1.9255]
[1736907772926,3.51848,3220.2,3219.9,0.3107]
[1736907773131,0.31069,3220.1,3219.9,1.1088]
[1736907773830,0.31069,3220.1,3219.9,1.4195]
[1736907775933,3.2078,3220.2,3219.9,1.4195]
[1736907776339,3.2078,3220.2,3220.0,0.31069]
[1736907776636,0.31069,3220.1,3219.9,1.4195]
[1736907776837,0.31069,3220.1,3219.9,1.1088]
[1736907777345,0.31069,3220.0,3219.9,1.1088]
[1736907777539,3.2078,3220.2,3219.8,1.9255]
[1736907777940,3.51848,3220.2,3220.0,0.31069]
[1736907778240,0.31068,3220.1,3220.0,0.31069]
[1736907778634,0.31068,3220.1,3219.9,1.3669]
[1736907778839,3.51847,3220.2,3220.0,0.31069]
[1736907779041,0.31069,3220.1,3219.9,1.3669]
[1736907780143,3.51848,3220.2,3220.0,0.31069]
[1736907780331,3.2078,3220.2,3220.0,0.31069]
[1736907780535,3.51848,3220.2,3220.0,0.31069]
[1736907781648,3.2078,3220.2,3220.1,0.31068]
[1736907781835,4.2606,3220.8,3220.1,2.44184588]
[1736907782036,4.2606,3220.8,3220.7,0.31063]
[1736907782037,3.2078,3220.8,3220.7,0.31063]
[1736907782451,3.2078,3220.8,3220.7,41.11063]
[1736907782646,3.51842,3220.8,3220.7,41.11063]
[1736907782942,3.51842,3220.8,3220.7,40.8]
[1736907783141,6.76078091,3220.8,3220.7,40.8]
[1736907783348,6.45016091,3220.8,3220.7,41.11063]
[1736907783549,3.2078,3220.8,3220.7,41.11063]
[1736907785855,1.0528,3221.2,3220.7,40.8]
[1736907786154,3.2078,3221.3,3221.2,0.31058]
[1736907787349,1.9128,3221.8,3221.2,4.5278]
[1736907787551,3.2078,3221.9,3221.2,4.5278]
[1736907787552,3.2078,3221.9,3221.8,0.31052]
[1736907787753,1.0782,3222.1,3222.0,0.3105]
[1736907787951,3.2078,3222.3,3222.2,0.31048]
[1736907791964,3.2078,3222.3,3222.0,1.32]
[1736907791965,1.39175,3222.6,3222.4,0.31046]
[1736907792463,1.0813,3222.6,3222.0,1.32]
[1736907792664,1.0813,3222.6,3222.5,0.31045]
[1736907794869,0.31046,3222.5,3222.2,0.31047]
[1736907795068,0.31046,3222.5,3222.0,1.32]
[1736907795373,0.31046,3222.5,3222.3,0.31047]
[1736907795765,1.0813,3222.6,3222.0,1.32]
[1736907795962,0.31049,3222.2,3221.9,0.3105]
[1736907796366,3.34000799,3222.1,3221.7,44.0078]
[1736907796562,3.34000799,3222.1,3222.0,0.3105]
[1736907796865,0.31049,3222.2,3222.0,0.3105]
[1736907797167,3.45782945,3222.1,3222.0,0.3105]
[1736907798577,3.76831945,3222.1,3221.9,0.3105]
[1736907798763,3.45782945,3222.1,3221.8,0.31052]
[1736907799073,3.45782945,3222.1,3222.0,0.3105]
[1736907801273,3.94771962,3222.7,3221.8,2.44184588]
[1736907801569,3.94771962,3222.7,3222.6,0.31044]
[1736907802268,3.94771962,3222.7,3222.6,41.11044]
[1736907802665,3.2078,3222.7,3222.6,41.11044]
[1736907803774,3.2078,3223.9,3223.2,0.31039]
[1736907804069,6.80066521,3223.9,3223.8,0.31032]
[1736907804575,3.2078,3223.9,3223.8,0.31032]
[1736907805473,3.2078,3223.9,3223.8,41.11032]
[1736907806776,3.2078,3223.9,3223.8,40.8]
[1736907806970,3.51812,3223.9,3223.8,41.11033]
[1736907807170,3.51812,3223.9,3223.8,40.8]
[1736907808179,3.51812,3223.9,3223.8,41.11033]
[1736907808472,3.2078,3223.9,3223.8,41.11033]
[1736907808677,3.51812,3223.9,3223.8,41.11033]
[1736907808872,3.51812,3223.9,3223.8,0.31033]
[1736907809070,3.2078,3223.9,3223.3,5.20134588]
[1736907809375,0.31034,3223.7,3223.5,0.31035]
[1736907809775,3.2078,3223.9,3223.5,0.31035]
[1736907809978,0.31034,3223.7,3223.5,0.31035]
[1736907810575,0.31035,3223.6,3223.4,41.11036]
[1736907810881,0.31036,3223.5,3223.4,41.11036]
[1736907811076,3.23267524,3223.8,3223.4,40.8]
[1736907811281,3.23267524,3223.8,3223.7,0.31034]
[1736907811673,3.54300524,3223.8,3223.7,0.31034]
[1736907812183,3.23267524,3223.8,3223.7,0.31034]
[1736907812577,3.23267524,3223.8,3223.4,40.8]
[1736907812875,0.31034,3223.7,3223.5,0.31035]
[1736907813277,0.7161,3223.6,3223.4,40.8]
[1736907813482,3.51816,3223.5,3223.4,40.8]
[1736907813876,6.98305563,3223.5,3223.4,40.8]
[1736907814679,9.42490151,3223.5,3223.4,40.8]
[1736907814978,0.31042,3222.9,3222.7,0.31043]
[1736907815177,0.6791,3222.8,3222.7,0.31043]
[1736907815384,0.31043,3222.7,3222.6,3.2078]
[1736907815577,0.31043,3222.7,3222.6,40.8]
[1736907815778,3.90815356,3222.7,3222.6,40.8]
[1736907817482,8.59772356,3222.7,3221.7,0.31053]
[1736907817685,0.31052,3221.9,3221.7,0.31052]
[1736907817980,0.31052,3221.9,3221.6,3.51833]
[1736907818182,3.5637668,3221.8,3221.5,0.7471]
[1736907818484,3.5637668,3221.8,3221.7,40.8]
[1736907819580,3.8742868,3221.8,3221.7,40.8]
[1736907819887,3.5637668,3221.8,3221.7,41.11053]
[1736907820084,3.8742868,3221.8,3221.7,40.8]
[1736907829291,3.5637668,3221.8,3221.7,41.11053]
[1736907829796,3.76291812,3221.9,3221.7,41.11053]
[1736907829986,0.31052,3221.8,3221.7,40.8]
[1736907830289,0.31052,3221.8,3221.7,41.69812]
[1736907830290,3.45239812,3221.8,3221.7,41.69812]
[1736907830488,3.47970961,3221.9,3221.7,41.3876]
[1736907830697,3.51831,3222.0,3221.8,0.31052]
[1736907831290,0.31052,3221.8,3221.7,41.3876]
[1736907831483,0.31052,3221.9,3221.7,41.69813]
[1736907831994,3.2078,3222.0,3221.9,0.31051]
[1736907832987,3.2078,3222.0,3221.7,41.3876]
[1736907833196,6.53970489,3222.0,3221.7,41.3876]
[1736907833393,3.51831,3222.0,3221.8,0.31051]
[1736907833589,0.31052,3221.9,3221.7,41.69813]
[1736907833997,0.31052,3221.9,3221.8,0.31052]
[1736907834198,3.5183,3222.0,3221.8,0.31052]
[1736907834888,0.31052,3221.8,3221.7,41.3876]
[1736907835298,3.81893795,3221.9,3221.7,41.69812]
[1736907835688,0.31051,3221.9,3221.7,41.69812]
[1736907835889,0.31052,3221.8,3221.7,41.3876]
[1736907836200,0.31052,3221.9,3221.7,41.69813]
[1736907836499,3.2078,3222.0,3221.7,41.69813]
[1736907836695,3.5183,3222.0,3221.9,0.31051]
[1736907836896,3.2078,3222.0,3221.7,41.3876]
[1736907837100,0.31051,3221.9,3221.8,0.31052]
[1736907838593,3.5183,3222.0,3221.9,0.31051]
[1736907839102,0.31052,3221.8,3221.7,41.3876]
[1736907839308,0.31052,3221.8,3221.7,41.69813]
[1736907839497,3.2078,3222.0,3221.7,41.69813]
[1736907839698,0.31052,3221.8,3221.7,41.69813]
[1736907840207,3.70162438,3221.8,3221.7,0.5876]
[1736907840596,3.70162438,3221.8,3221.7,0.89813]
[1736907840897,3.70162438,3221.8,3221.7,41.3876]
[1736907841105,3.70162438,3221.8,3221.7,41.69813]
[1736907841400,3.2078,3222.0,3221.7,41.3876]
[1736907841590,3.2078,3222.0,3221.9,0.31051]
[1736907841993,3.5183,3222.0,3221.9,0.31051]
[1736907842196,3.2078,3222.0,3221.7,41.3876]
[1736907842392,0.31051,3221.9,3221.8,0.31051]
[1736907842801,0.31052,3221.8,3221.7,41.3876]
[1736907843004,0.31051,3221.9,3221.8,0.31051]
[1736907845205,3.5183,3222.0,3221.9,0.31051]
[1736907845809,3.2078,3222.0,3221.9,0.31051]
[1736907847208,3.2078,3222.8,3221.9,5.0]
[1736907847504,3.2078,3222.8,3222.7,0.31043]
[1736907848005,3.2078,3222.8,3222.7,41.11043]
[1736907848308,3.51822,3222.8,3222.7,41.11043]
[1736907848507,3.2078,3222.8,3222.7,41.11043]
[1736907848899,3.51822,3222.8,3222.7,41.11043]
[1736907849104,3.51822,3222.8,3222.7,40.8]
[1736907850601,3.51822,3222.8,3222.1,1.317]
[1736907850602,0.31045,3222.5,3222.4,0.31046]
[1736907851210,0.31045,3222.5,3222.4,41.11046]
[1736907851907,6.69684381,3222.8,3222.4,40.8]
[1736907852111,0.31045,3222.6,3222.5,0.31045]
[1736907852618,0.31045,3222.6,3222.4,41.11046]
[1736907853807,6.69684381,3222.8,3222.4,40.8]
[1736907854007,3.90140462,3222.5,3222.4,40.8]
[1736907854409,0.31045,3222.5,3222.4,40.8]
[1736907854708,3.48396003,3222.5,3222.4,41.11046]
[1736907854917,0.31045,3222.6,3222.4,41.11046]
[1736907855811,0.31045,3222.6,3222.5,0.31045]
[1736907856011,0.31045,3222.5,3222.4,41.11046]
[1736907856213,0.31045,3222.6,3222.4,41.11046]
[1736907856508,3.45534928,3222.7,3222.5,0.31045]
[1736907856714,0.31044,3222.6,3222.4,41.11046]
[1736907856905,0.31045,3222.5,3222.4,40.8]
[1736907857311,3.80634544,3222.5,3222.4,40.8]
[1736907857512,2.75229588,3222.5,3222.4,40.8]
[1736907857712,6.0808198,3222.5,3222.4,40.8]
[1736907858407,5.7703698,3222.5,3222.0,3.5183]
[1736907858609,3.51829,3222.2,3222.0,0.3105]
[1736907859010,3.51829,3222.2,3222.1,41.11049]
[1736907859209,3.51829,3222.2,3222.1,40.8]
[1736907859914,3.51829,3222.2,3222.1,41.11049]
[1736907859915,3.2078,3222.2,3222.1,41.11049]
[1736907860225,3.2078,3222.6,3222.5,0.31045]
[1736907860719,0.31048,3222.3,3221.9,1.316]
[1736907860920,3.51827,3222.3,3222.2,40.8]
[1736907861118,3.2078,3222.3,3222.2,41.11048]
[1736907861420,3.51827,3222.3,3222.2,40.8]
[1736907861620,3.2078,3222.3,3222.2,41.11048]
[1736907863013,3.51827,3222.3,3222.2,41.11048]
[1736907863216,3.51827,3222.3,3222.2,40.8]
[1736907863515,3.2078,3222.3,3222.2,41.11048]
[1736907864523,3.51827,3222.3,3222.2,40.8]
[1736907865921,5.96011588,3222.3,3222.2,40.8]
[1736907866118,9.22859336,3222.3,3222.2,40.8]
[1736907869816,0.31056,3221.5,3221.3,1.62756]
[1736907870217,0.31056,3221.4,3221.2,0.81717]
[1736907870518,0.31056,3221.5,3221.3,0.31056]
[1736907870721,0.31055,3221.5,3221.4,40.8]
[1736907872825,0.31055,3221.5,3221.4,41.11056]
[1736907873331,3.93234146,3221.6,3221.4,41.11056]
[1736907873628,0.31055,3221.5,3221.4,41.11056]
[1736907875827,0.31054,3221.6,3221.5,0.31055]
[1736907876026,3.2078,3221.7,3221.6,0.31054]
[1736907876216,3.5183,3222.1,3222.0,0.3105]
[1736907876622,0.31051,3222.0,3221.9,0.31051]
[1736907876822,0.31051,3222.0,3221.9,41.11051]
[1736907877125,3.2078,3222.1,3221.9,41.11051]
[1736907877326,0.3105,3222.0,3221.9,41.11051]
[1736907877726,0.3105,3222.0,3221.9,40.8]
[1736907878024,3.68924409,3222.0,3221.9,40.8]
[1736907879634,3.37874409,3222.0,3221.4,0.4609]
[1736907879826,0.31055,3221.5,3221.4,0.4609]
[1736907880224,0.31055,3221.5,3221.4,41.2609]
[1736907881237,0.31054,3221.6,3221.5,0.31055]
[1736907881539,0.31055,3221.5,3221.4,41.57145]
[1736907882129,0.9525,3221.9,3221.4,41.2609]
[1736907882625,0.31055,3221.5,3221.4,41.57145]
[1736907882826,3.44071961,3221.8,3221.4,41.2609]
[1736907883027,0.31054,3221.6,3221.5,0.31055]
[1736907883529,0.31055,3221.5,3221.4,41.57145]
[1736907883830,3.44071961,3221.8,3221.4,41.2609]
[1736907884021,3.44071961,3221.8,3221.4,40.8]
[1736907884226,3.2078,3222.1,3221.4,43.24184588]
[1736907884426,0.31051,3221.9,3221.8,0.31051]
[1736907884828,3.2078,3222.1,3221.5,0.47]
[1736907885033,0.31052,3221.9,3221.8,0.31052]
[1736907886036,0.31052,3221.9,3221.7,0.31052]
[1736907886235,0.31052,3221.9,3221.8,0.31052]
[1736907886630,3.2078,3222.1,3221.5,0.47]
[1736907886935,0.31051,3222.0,3221.9,0.31051]
[1736907887337,3.2078,3222.1,3221.5,0.47]
[1736907887736,3.2078,3222.1,3221.8,0.31051]
[1736907888032,0.31052,3221.9,3221.5,0.47]
[1736907888237,0.31052,3221.9,3221.7,0.31052]
[1736907888445,0.31051,3222.0,3221.9,0.31051]
[1736907888734,0.31051,3221.9,3221.8,0.31052]
[1736907889239,3.2078,3222.1,3221.5,0.47]
[1736907889440,0.31051,3222.0,3221.8,0.31051]
[1736907889641,0.31051,3222.0,3221.5,0.47]
[1736907889940,0.31051,3222.0,3221.9,0.31051]
[1736907890140,3.2078,3222.1,3221.5,0.47]
[1736907890345,3.51829,3222.1,3222.0,0.3105]
[1736907890841,3.51829,3222.1,3221.9,0.3105]
[1736907891038,3.51829,3222.1,3222.0,0.4968]
[1736907894340,3.2078,3222.1,3222.0,0.8073]
[1736907894545,3.51829,3222.1,3222.0,0.4968]
[1736907899052,0.31049,3222.1,3222.0,0.4968]
[1736907900252,0.31049,3222.1,3222.0,0.8073]
[1736907900456,0.31049,3222.1,3222.0,0.4968]
[1736907901153,0.9289,3222.5,3222.0,0.4968]
[1736907901455,0.31046,3222.4,3222.2,0.31048]
[1736907901656,0.31046,3222.4,3222.3,40.8]
[1736907902656,0.31046,3222.4,3222.3,41.11047]
[1736907902957,0.9289,3222.5,3222.3,40.8]
[1736907902958,0.4731,3222.5,3222.3,40.8]
[1736907903166,3.2078,3222.6,3222.3,40.8]
[1736907903463,0.31045,3222.5,3222.4,0.4742]
[1736907904552,0.31046,3222.4,3222.3,41.11047]
[1736907905556,0.31046,3222.4,3222.3,40.8]
[1736907905760,3.2078,3222.6,3222.1,0.31049]
[1736907905761,0.31048,3222.2,3222.1,0.31049]
[1736907905955,0.3105,3222.0,3221.9,0.31051]
[1736907906255,0.31049,3222.1,3222.0,0.3105]
[1736907907153,0.3105,3222.0,3221.9,0.31051]
[1736907907362,0.31051,3222.0,3221.9,0.31051]
[1736907907755,0.31051,3221.9,3221.8,42.42651]
[1736907907961,0.76491,3221.9,3221.8,42.116]
[1736907908156,0.76491,3221.9,3221.8,42.42652]
[1736907909254,0.76491,3221.9,3221.8,40.8]
[1736907909459,4.2310949,3221.9,3221.8,40.8]
[1736907909660,6.67294078,3221.9,3221.8,40.8]
[1736907912363,0.31058,3221.2,3221.0,0.31059]
[1736907912564,0.31058,3221.2,3221.0,0.3106]
[1736907912863,0.31058,3221.2,3221.1,40.8]
[1736907913462,0.79118,3221.2,3221.1,40.8]
[1736907924565,3.2078,3221.4,3221.1,40.8]
[1736907924867,3.2078,3221.4,3221.3,0.31057]
[1736907927173,0.31057,3221.3,3221.2,0.4985]
[1736907927973,3.2078,3221.4,3221.1,40.8]
[1736907928173,0.31058,3221.2,3221.1,40.8]
[1736907931477,3.455368,3221.2,3220.2,5.64964588]
[1736907931774,0.31064,3220.6,3220.4,0.31065]
[1736907932071,0.31063,3220.7,3220.5,41.11064]
[1736907932976,0.31062,3220.8,3220.6,0.31063]
[1736907933281,3.49426367,3220.9,3220.5,40.8]
[1736907933475,0.31061,3220.9,3220.7,0.31062]
[1736907933677,0.31061,3220.9,3220.8,0.31062]
[1736907933971,3.2078,3221.0,3220.6,0.4774]
[1736907934177,3.2078,3221.0,3220.5,41.11064]
[1736907934374,3.2078,3221.0,3220.5,40.8]
[1736907934575,0.31063,3220.7,3220.5,41.11064]
[1736907935277,0.31064,3220.6,3220.5,41.11064]
[1736907935772,0.31062,3220.8,3220.6,0.31063]
[1736907935976,0.31062,3220.8,3220.5,40.8]
[1736907936379,0.31062,3220.8,3220.6,0.31063]
[1736907936974,3.40485582,3220.9,3220.6,0.31063]
[1736907937178,0.31063,3220.7,3220.5,41.11064]
[1736907937381,0.31062,3220.8,3220.6,0.31063]
[1736907937584,3.40485582,3220.9,3220.6,0.31064]
[1736907937585,0.31061,3220.9,3220.6,0.31064]
[1736907937780,3.2078,3221.0,3220.7,0.31062]
[1736907937781,0.31062,3220.8,3220.7,0.31062]
[1736907938779,3.2078,3221.0,3220.9,0.31061]
[1736907939369,3.2078,3221.0,3220.9,41.11061]
[1736907939569,3.2078,3221.5,3221.4,0.31056]
[1736907939780,3.51835,3221.5,3221.4,0.31056]
[1736907940284,3.2078,3221.5,3221.4,41.11056]
[1736907940474,3.51835,3221.5,3221.4,41.11056]
[1736907940877,3.2078,3221.5,3221.4,41.11056]
[1736907941475,0.31052,3221.9,3221.7,0.31052]
[1736907941676,0.31052,3221.9,3221.8,0.80342]
[1736907942580,0.31054,3221.6,3221.4,41.11055]
[1736907942888,0.31054,3221.7,3221.6,0.31054]
[1736907943584,3.6996,3222.0,3221.4,40.8]
[1736907943884,3.5183,3222.0,3221.9,0.31051]
[1736907947184,0.31052,3221.9,3221.8,0.31052]
[1736907948386,3.5183,3222.0,3221.9,0.31051]
[1736907948586,0.31051,3221.9,3221.8,0.31051]
[1736907948888,3.2078,3222.0,3221.9,0.31051]
[1736907949685,0.31049,3222.2,3222.1,0.31049]
[1736907950387,1.25427,3222.3,3222.2,0.31048]
[1736907950787,4.00756,3222.5,3222.0,2.44184588]
[1736907950992,3.2078,3222.5,3222.4,0.31046]
[1736907951283,3.51825,3222.5,3222.4,0.31046]
[1736907951586,3.51825,3222.5,3222.4,41.11046]
[1736907952184,6.65159093,3222.5,3221.7,1.314]
[1736907952394,0.3105,3222.1,3221.9,0.3105]
[1736907952785,0.3105,3222.1,3222.0,41.1105]
[1736907953788,0.4973,3222.4,3222.0,41.1105]
[1736907954091,0.4973,3222.4,3222.3,0.31047]
[1736907954286,3.2078,3222.5,3222.4,0.31046]
[1736907955693,3.2078,3222.5,3222.3,0.31047]
[1736907955694,0.31046,3222.4,3222.3,0.31047]
[1736907955991,3.2078,3222.5,3222.4,0.31046]
[1736907960296,3.51825,3222.5,3222.4,0.31046]
[1736907960896,0.31047,3222.3,3222.2,1.62448]
[1736907961086,3.2078,3222.5,3222.2,1.314]
[1736907961292,3.2078,3222.5,3222.4,0.31046]
[1736907963697,3.51825,3222.5,3222.4,0.31046]
[1736907964098,3.2078,3222.5,3222.4,0.31046]
[1736907964795,0.31047,3222.4,3222.3,0.31047]
[1736907965001,3.2078,3222.5,3222.2,1.314]
[1736907965204,0.4794,3222.3,3222.2,1.62448]
[1736907966995,3.2078,3222.5,3222.4,0.31046]
[1736907968903,0.4909,3222.6,3222.2,1.314]
[1736907969107,0.4909,3222.6,3222.5,0.31045]
[1736907969400,0.80134,3222.6,3222.5,0.31045]
[1736907970092,0.4909,3222.6,3222.2,1.314]
[1736907970297,0.31047,3222.3,3222.2,0.31048]
[1736907970698,0.31046,3222.5,3222.4,0.31046]
[1736907971501,0.31045,3222.5,3222.4,0.31045]
[1736907971701,4.02262503,3222.6,3222.5,0.31045]
[1736907971901,0.4909,3222.6,3222.5,0.31045]
[1736907972203,0.80134,3222.6,3222.5,0.31045]
[1736907972404,0.4909,3222.6,3222.5,0.31045]
[1736907972803,0.80134,3222.6,3222.5,0.31045]
[1736907974204,0.4909,3222.6,3222.5,0.31045]
[1736907975606,0.9591,3222.8,3222.2,0.4698]
[1736907975607,0.9591,3222.8,3222.3,5.64964588]
[1736907975906,3.2078,3223.1,3223.0,0.3104]
[1736907976105,1.4369,3223.4,3223.3,0.31038]
[1736907976294,0.4954,3223.4,3223.3,0.31038]
[1736907976494,3.2078,3223.5,3223.4,0.31037]
[1736907976700,10.11225075,3223.7,3223.2,2.44184588]
[1736907976903,9.63935075,3223.7,3223.6,0.31035]
[1736907977097,9.63935075,3223.7,3223.6,1.62335]
[1736907978205,9.63935075,3223.7,3223.6,42.42335]
[1736907983109,0.972,3223.8,3223.6,42.113]
[1736907983307,0.972,3223.8,3223.7,0.31034]
[1736907983809,3.2078,3224.0,3223.9,0.31032]
[1736907984112,0.9644,3224.2,3223.8,2.44184588]
[1736907984313,0.9644,3224.2,3224.1,0.3103]
[1736907984809,3.2078,3224.5,3224.4,0.31027]
[1736907985209,3.2078,3224.5,3224.4,44.86511588]
[1736907985409,0.9526,3225.0,3224.9,0.31022]
[1736907986207,3.2078,3225.1,3225.0,0.31021]
[1736907986408,0.4621,3225.2,3225.0,0.31021]
[1736907986808,0.4621,3225.2,3225.1,0.3102]
[1736907987414,0.4621,3225.2,3224.7,2.44184588]
[1736907987609,0.4621,3225.2,3225.0,0.3102]
[1736907987819,0.4621,3225.2,3225.1,40.8]
[1736907988318,0.4621,3225.2,3225.1,41.1102]
[1736907989418,0.4621,3225.2,3225.1,40.8]
[1736907989918,0.77229,3225.2,3225.1,40.8]
[1736907990215,0.4621,3225.2,3225.0,0.31021]
[1736907990418,0.77229,3225.2,3225.0,0.31021]
[1736907990617,0.4621,3225.2,3225.0,0.31021]
[1736907990822,0.3102,3225.1,3225.0,40.8]
[1736907991118,0.4621,3225.2,3225.0,40.8]
[1736907991312,0.3102,3225.1,3225.0,40.8]
[1736907993116,0.31027,3224.4,3224.2,0.31029]
[1736907993413,0.3103,3224.1,3223.9,0.31032]
[1736907993617,0.3103,3224.1,3224.0,40.8]
[1736907994218,3.2078,3224.2,3224.0,41.1103]
[1736907994714,3.51809,3224.2,3224.0,41.1103]
[1736907995426,3.2078,3224.2,3224.0,40.8]
[1736907995617,3.5181,3224.2,3224.0,41.1103]
[1736907995817,3.5181,3224.2,3224.0,40.8]
[1736907996018,3.5181,3224.2,3224.0,41.1103]
[1736907996819,3.2078,3224.2,3224.0,41.1103]
[1736907997726,0.3103,3224.1,3224.0,40.8]
[1736907997915,3.2078,3224.2,3224.0,40.8]
[1736907998224,3.2078,3224.2,3224.0,41.1103]
[1736907998525,3.2078,3224.2,3224.1,0.3103]
[1736907998819,1.72148,3224.3,3224.1,0.3103]
[1736907999020,1.72148,3224.3,3224.0,40.8]
[1736907999021,1.4112,3224.3,3224.0,40.8]
[1736907999217,1.4112,3224.3,3224.0,41.1103]
[1736907999420,1.72148,3224.3,3224.0,40.8]
[1736907999616,0.31029,3224.2,3224.0,41.1103]
[1736907999822,3.2078,3224.6,3224.0,40.8]
[1736908000030,3.51806,3224.6,3224.4,0.31027]
[1736908000523,3.2078,3224.6,3224.5,40.8]
[1736908000720,3.2078,3224.6,3224.5,41.11026]
[1736908002317,4.6037,3225.0,3224.5,42.42226]
[1736908002623,4.6037,3225.0,3224.9,0.31022]
[1736908002624,3.2078,3225.0,3224.9,0.31022]
[1736908003920,3.2078,3225.5,3224.7,2.94154588]
[1736908004120,3.2078,3225.5,3225.0,2.44184588]
[1736908004322,0.31017,3225.4,3225.3,0.31018]
[1736908004526,0.31019,3225.3,3225.1,0.3102]
[1736908004826,0.31021,3225.1,3224.9,0.77252]
[1736908005023,0.31022,3225.0,3224.4,5.64964588]
[1736908005223,0.31022,3225.0,3224.8,0.31023]
[1736908005529,0.3102,3225.2,3225.1,0.3102]
[1736908007724,3.44469642,3225.4,3225.1,0.3102]
[1736908007935,0.31019,3225.3,3225.1,0.3102]
[1736908009128,0.31018,3225.4,3225.2,0.31019]
[1736908010519,0.31019,3225.3,3225.1,0.3102]
[1736908010720,0.31018,3225.4,3224.7,2.44184588]
[1736908010923,0.31018,3225.4,3224.8,0.31023]
[1736908011121,0.31018,3225.4,3224.7,2.44184588]
[1736908011321,0.31018,3225.4,3225.2,0.31019]
[1736908012827,3.2078,3225.5,3225.1,0.3102]
[1736908013020,3.2078,3225.5,3224.7,2.44184588]
[1736908013228,3.51797,3225.5,3225.3,0.31018]
[1736908013426,0.31017,3225.4,3225.3,0.31018]
[1736908013927,0.31019,3225.3,3225.1,0.3102]
[1736908014228,3.2078,3225.5,3224.7,2.44184588]
[1736908014433,0.31018,3225.4,3225.2,0.31019]
[1736908014823,3.2078,3225.5,3225.2,0.31019]
[1736908015020,0.31019,3225.3,3225.1,0.3102]
[1736908016235,0.31019,3225.2,3225.1,0.3102]
[1736908016930,0.31019,3225.3,3225.1,0.3102]
[1736908019232,0.31019,3225.3,3225.2,0.31019]
[1736908020332,0.31019,3225.3,3225.1,0.3102]
[1736908020841,0.31019,3225.2,3225.1,0.3102]
[1736908021839,0.31019,3225.3,3225.2,0.31019]
[1736908022141,3.2078,3225.4,3224.8,0.4586]
[1736908022342,3.51798,3225.4,3224.8,1.23418]
[1736908022548,3.51798,3225.4,3225.3,0.31018]
[1736908022839,0.31018,3225.3,3225.2,0.31019]
[1736908023040,3.51798,3225.4,3225.3,0.31018]
[1736908023239,0.4522,3225.6,3225.3,3.75284588]
[1736908023438,3.2078,3225.8,3225.3,3.75284588]
[1736908023639,3.2078,3225.8,3225.7,0.31014]
[1736908023829,3.2078,3225.8,3225.7,41.11014]
[1736908026339,0.4526,3226.1,3225.7,40.8]
[1736908026534,3.6691,3226.4,3225.9,2.44184588]
[1736908026739,3.6691,3226.4,3226.3,0.31009]
[1736908026740,4.1268,3226.4,3226.3,0.31009]
[1736908027043,0.002,3226.5,3226.4,0.31008]
[1736908027436,0.31207,3226.5,3226.3,0.31008]
[1736908027639,0.002,3226.5,3226.1,3.2078]
[1736908027936,0.31014,3225.8,3225.7,44.0078]
[1736908028147,0.31012,3226.0,3225.7,44.31794]
[1736908028443,0.4615,3225.9,3225.8,0.31013]
[1736908029944,0.77163,3225.9,3225.8,0.31013]
[1736908032242,0.31014,3225.8,3225.7,41.11014]
[1736908032444,0.31014,3225.8,3225.7,40.8]
[1736908032640,0.31018,3225.3,3225.2,3.2078]
[1736908032838,0.31022,3225.0,3224.9,0.31022]
[1736908033039,0.31022,3225.0,3224.9,41.11022]
[1736908033247,0.31022,3225.0,3224.9,40.8]
[1736908034339,0.31029,3224.2,3224.1,1.311]
[1736908034534,8.24876639,3225.0,3224.1,1.311]
[1736908034535,3.2078,3224.5,3224.1,1.311]
[1736908034740,0.31029,3224.2,3224.1,1.311]